[Event "*** SCC Grand Prix: Titled Tuesday Blitz"]
[Site "Chess.com"]
[Date "2020.07.21"]
[Round "6"]
[White "AGW2016"]
[Black "Chesswizard_2007"]
[Result "0-1"]
[WhiteElo "2252"]
[BlackElo "2459"]
[TimeControl "180+1"]
[EndTime "11:05:26 PDT"]
[Termination "Chesswizard_2007 won by resignation"]

1. d4 {[%clk 0:03:00.9]} 1... Nf6 {[%clk 0:02:58.6]} 2. c4 {[%clk 0:03:01.1]}
2... g6 {[%clk 0:02:58.2]} 3. Nc3 {[%clk 0:03:01.4]} 3... Bg7 {[%clk 0:02:59.1]}
4. e4 {[%clk 0:03:02]} 4... O-O {[%clk 0:03:00]} 5. Be2 {[%clk 0:03:02.7]} 5...
d6 {[%clk 0:02:52.6]} 6. Be3 {[%clk 0:03:02.7]} 6... c5 {[%clk 0:02:40]} 7. d5
{[%clk 0:03:02.3]} 7... Qa5 {[%clk 0:02:36.5]} 8. f3 {[%clk 0:02:01.3]} 8... b5
{[%clk 0:02:34.1]} 9. cxb5 {[%clk 0:02:00.1]} 9... a6 {[%clk 0:02:33.8]} 10. a4
{[%clk 0:01:59.9]} 10... axb5 {[%clk 0:02:17.3]} 11. Bxb5 {[%clk 0:01:58.6]}
11... Ba6 {[%clk 0:02:05.4]} 12. Bxa6 {[%clk 0:01:57.2]} 12... Nxa6 {[%clk
0:02:06.3]} 13. Ne2 {[%clk 0:01:56.9]} 13... Rfb8 {[%clk 0:02:05.2]} 14. Rb1
{[%clk 0:01:49.6]} 14... Nd7 {[%clk 0:01:59.6]} 15. O-O {[%clk 0:01:48.1]} 15...
Nb6 {[%clk 0:01:59.8]} 16. Bd2 {[%clk 0:01:09.9]} 16... Nc4 {[%clk 0:01:54.7]}
17. b3 {[%clk 0:01:09.5]} 17... Nxd2 {[%clk 0:01:43.6]} 18. Qxd2 {[%clk
0:01:10.4]} 18... Rb4 {[%clk 0:01:29.4]} 19. Rfd1 {[%clk 0:01:03.4]} 19... Qd8
{[%clk 0:01:22.5]} 20. Nb5 {[%clk 0:00:59.2]} 20... Nc7 {[%clk 0:01:20.6]} 21.
Nec3 {[%clk 0:00:57.8]} 21... Nxb5 {[%clk 0:01:14.4]} 22. Nxb5 {[%clk
0:00:55.9]} 22... Qa5 {[%clk 0:01:08]} 23. Qd3 {[%clk 0:00:28.7]} 23... Qb6
{[%clk 0:01:00.4]} 24. Rdc1 {[%clk 0:00:23.3]} 24... c4+ {[%clk 0:00:58.4]} 0-1

[Event "*** SCC Grand Prix: Titled Tuesday Blitz"]
[Site "Chess.com"]
[Date "2020.07.21"]
[Round "6"]
[White "mattcolins2025"]
[Black "Gandrade2"]
[Result "1-0"]
[WhiteElo "2393"]
[BlackElo "2073"]
[TimeControl "180+1"]
[EndTime "11:05:33 PDT"]
[Termination "mattcolins2025 won on time"]

1. d4 {[%clk 0:03:00.9]} 1... d5 {[%clk 0:02:59.6]} 2. c4 {[%clk 0:03:01.5]}
2... e6 {[%clk 0:02:59]} 3. Nc3 {[%clk 0:03:02.2]} 3... a6 {[%clk 0:02:59.1]} 4.
cxd5 {[%clk 0:03:02.6]} 4... exd5 {[%clk 0:02:59.6]} 5. Bf4 {[%clk 0:03:02.6]}
5... c6 {[%clk 0:02:58.1]} 6. e3 {[%clk 0:03:03.1]} 6... Bd6 {[%clk 0:02:58.4]}
7. Nge2 {[%clk 0:03:02.5]} 7... Nf6 {[%clk 0:02:56.7]} 8. Bxd6 {[%clk
0:03:02.6]} 8... Qxd6 {[%clk 0:02:55.9]} 9. Ng3 {[%clk 0:03:03.5]} 9... O-O
{[%clk 0:02:54.2]} 10. Bd3 {[%clk 0:03:03.8]} 10... Re8 {[%clk 0:02:49.9]} 11.
O-O {[%clk 0:03:04.1]} 11... Nbd7 {[%clk 0:02:41.3]} 12. Qd2 {[%clk 0:03:03.9]}
12... Nf8 {[%clk 0:02:34.6]} 13. Rae1 {[%clk 0:03:03.2]} 13... Ng6 {[%clk
0:02:31.8]} 14. Bb1 {[%clk 0:03:01]} 14... Be6 {[%clk 0:02:01.6]} 15. f3 {[%clk
0:02:56.7]} 15... Rad8 {[%clk 0:01:59.8]} 16. Nge2 {[%clk 0:02:41.4]} 16... Bc8
{[%clk 0:01:54]} 17. e4 {[%clk 0:02:35.1]} 17... dxe4 {[%clk 0:01:47.9]} 18.
Nxe4 {[%clk 0:02:31.7]} 18... Qe6 {[%clk 0:01:13]} 19. N2g3 {[%clk 0:02:25.7]}
19... Nd5 {[%clk 0:00:47]} 20. Ng5 {[%clk 0:02:18.4]} 20... Qf6 {[%clk
0:00:42.2]} 21. Nh5 {[%clk 0:02:12.7]} 21... Qd6 {[%clk 0:00:35.5]} 22. Re4
{[%clk 0:01:59.4]} 22... Bf5 {[%clk 0:00:31]} 23. Rxe8+ {[%clk 0:01:57.6]} 23...
Rxe8 {[%clk 0:00:29.6]} 24. Bxf5 {[%clk 0:01:58.4]} 24... Ngf4 {[%clk
0:00:25.9]} 25. Bxh7+ {[%clk 0:01:53]} 25... Kf8 {[%clk 0:00:25]} 26. Nxf4
{[%clk 0:01:47.8]} 26... Nxf4 {[%clk 0:00:24.9]} 27. Be4 {[%clk 0:01:45.3]}
27... Nh5 {[%clk 0:00:14.3]} 28. Nh7+ {[%clk 0:01:43.5]} 28... Kg8 {[%clk
0:00:14.2]} 29. Qg5 {[%clk 0:01:43.7]} 29... Nf4 {[%clk 0:00:07.6]} 30. Qh4
{[%clk 0:01:38.6]} 30... Ng6 {[%clk 0:00:03.5]} 31. Bxg6 {[%clk 0:01:36.7]}
31... Qxg6 {[%clk 0:00:04.4]} 32. Ng5 {[%clk 0:01:36.4]} 32... Re2 {[%clk
0:00:04.3]} 33. Qg3 {[%clk 0:01:36.4]} 33... f6 {[%clk 0:00:03.8]} 34. Ne4
{[%clk 0:01:36]} 34... Qe8 {[%clk 0:00:03.2]} 35. Nxf6+ {[%clk 0:01:35.5]} 1-0

[Event "*** SCC Grand Prix: Titled Tuesday Blitz"]
[Site "Chess.com"]
[Date "2020.07.21"]
[Round "6"]
[White "sm_sharon"]
[Black "DanielTitichoca"]
[Result "1-0"]
[WhiteElo "2054"]
[BlackElo "2292"]
[TimeControl "180+1"]
[EndTime "11:05:33 PDT"]
[Termination "sm_sharon won by resignation"]

1. d4 {[%clk 0:03:00.4]} 1... e6 {[%clk 0:03:00.9]} 2. Nf3 {[%clk 0:02:58.7]}
2... d5 {[%clk 0:03:01.8]} 3. e3 {[%clk 0:02:54.6]} 3... Nf6 {[%clk 0:03:02.7]}
4. b3 {[%clk 0:02:54.4]} 4... c5 {[%clk 0:03:03.3]} 5. Bb2 {[%clk 0:02:54.4]}
5... Nc6 {[%clk 0:03:04]} 6. Nbd2 {[%clk 0:02:54.2]} 6... a6 {[%clk 0:03:04.8]}
7. Bd3 {[%clk 0:02:54.1]} 7... b5 {[%clk 0:03:05.4]} 8. a4 {[%clk 0:02:50.5]}
8... c4 {[%clk 0:03:01.4]} 9. axb5 {[%clk 0:02:50.1]} 9... cxd3 {[%clk 0:03:00]}
10. bxc6 {[%clk 0:02:49.7]} 10... Qb6 {[%clk 0:02:49.4]} 11. Ne5 {[%clk
0:02:23.2]} 11... dxc2 {[%clk 0:02:43.9]} 12. Qxc2 {[%clk 0:02:22.4]} 12... Bd6
{[%clk 0:02:44.4]} 13. O-O {[%clk 0:02:18.2]} 13... O-O {[%clk 0:02:37.2]} 14.
Ba3 {[%clk 0:02:14.5]} 14... Rd8 {[%clk 0:02:30.9]} 15. Bxd6 {[%clk 0:02:12.2]}
15... Rxd6 {[%clk 0:02:31.8]} 16. Rfc1 {[%clk 0:02:10.2]} 16... Qc7 {[%clk
0:02:27.7]} 17. b4 {[%clk 0:01:59.4]} 17... Rb8 {[%clk 0:02:17.9]} 18. Ra4
{[%clk 0:01:58.6]} 18... Rb6 {[%clk 0:02:07]} 19. Nb3 {[%clk 0:01:40]} 19... Ne8
{[%clk 0:02:04.8]} 20. Na5 {[%clk 0:01:35.9]} 20... f6 {[%clk 0:01:59.9]} 21.
Nd3 {[%clk 0:01:34.9]} 21... Rd8 {[%clk 0:01:55.8]} 22. f4 {[%clk 0:01:33.1]}
22... Nd6 {[%clk 0:01:56.1]} 23. Nc5 {[%clk 0:01:31.2]} 23... Nf5 {[%clk
0:01:50]} 24. Qd3 {[%clk 0:01:30.5]} 24... Rb5 {[%clk 0:01:46.1]} 25. Nab7
{[%clk 0:01:24.3]} 25... Re8 {[%clk 0:01:41.4]} 26. Nxa6 {[%clk 0:01:22.6]}
26... Qb6 {[%clk 0:01:37.9]} 27. g4 {[%clk 0:01:13.6]} 27... Nh6 {[%clk
0:01:30.5]} 28. h3 {[%clk 0:01:12.6]} 28... e5 {[%clk 0:01:27.6]} 29. dxe5
{[%clk 0:01:11.5]} 29... fxe5 {[%clk 0:01:26.7]} 30. Nd6 {[%clk 0:01:03.9]}
30... exf4 {[%clk 0:01:24.7]} 31. Nxe8 {[%clk 0:00:55.6]} 31... fxe3 {[%clk
0:01:25.1]} 32. Nc5 {[%clk 0:00:53.2]} 32... Qxc6 {[%clk 0:01:19.3]} 33. Qxe3
{[%clk 0:00:41.2]} 33... Rxc5 {[%clk 0:01:18.4]} 34. Rxc5 {[%clk 0:00:38.5]}
34... Qxa4 {[%clk 0:01:14.9]} 35. Rxc8 {[%clk 0:00:38]} 35... Qd1+ {[%clk
0:01:14.5]} 36. Kg2 {[%clk 0:00:36.7]} 1-0

[Event "*** SCC Grand Prix: Titled Tuesday Blitz"]
[Site "Chess.com"]
[Date "2020.07.21"]
[Round "6"]
[White "GukeshDommaraju"]
[Black "LilRag"]
[Result "1-0"]
[WhiteElo "2707"]
[BlackElo "2498"]
[TimeControl "180+1"]
[EndTime "11:05:36 PDT"]
[Termination "GukeshDommaraju won by resignation"]

1. d4 {[%clk 0:03:00.9]} 1... Nf6 {[%clk 0:02:59.5]} 2. c4 {[%clk 0:03:00.7]}
2... e6 {[%clk 0:02:59.6]} 3. Nc3 {[%clk 0:03:00.4]} 3... b6 {[%clk 0:02:58.9]}
4. e4 {[%clk 0:03:00.1]} 4... d6 {[%clk 0:02:59]} 5. Nf3 {[%clk 0:02:57.5]} 5...
Bb7 {[%clk 0:02:58.6]} 6. Bd3 {[%clk 0:02:57.1]} 6... Nbd7 {[%clk 0:02:58.7]} 7.
O-O {[%clk 0:02:56.9]} 7... c5 {[%clk 0:02:57.9]} 8. d5 {[%clk 0:02:55.7]} 8...
e5 {[%clk 0:02:50.7]} 9. a3 {[%clk 0:02:46.2]} 9... g6 {[%clk 0:02:50]} 10. b4
{[%clk 0:02:46.1]} 10... Bg7 {[%clk 0:02:49.5]} 11. Nb5 {[%clk 0:02:46.3]} 11...
Nb8 {[%clk 0:02:41.2]} 12. bxc5 {[%clk 0:02:44.4]} 12... bxc5 {[%clk 0:02:40.2]}
13. Rb1 {[%clk 0:02:44.2]} 13... Ba6 {[%clk 0:02:26.9]} 14. Qa4 {[%clk
0:02:36.6]} 14... O-O {[%clk 0:02:24.7]} 15. Bd2 {[%clk 0:02:36.6]} 15... Bxb5
{[%clk 0:02:24.3]} 16. Rxb5 {[%clk 0:02:34.3]} 16... Nbd7 {[%clk 0:02:21.2]} 17.
Rfb1 {[%clk 0:02:28]} 17... Nb6 {[%clk 0:02:10.9]} 18. Qc2 {[%clk 0:02:26]}
18... Qe7 {[%clk 0:02:06.4]} 19. a4 {[%clk 0:02:24.8]} 19... Rfb8 {[%clk
0:01:59]} 20. a5 {[%clk 0:02:24.3]} 20... Nbd7 {[%clk 0:01:57.7]} 21. a6 {[%clk
0:02:13.1]} 21... Rxb5 {[%clk 0:01:53.1]} 22. Rxb5 {[%clk 0:02:09]} 22... Ne8
{[%clk 0:01:51.5]} 23. Rb7 {[%clk 0:02:08]} 23... Qd8 {[%clk 0:01:45.7]} 24. Qa4
{[%clk 0:02:03]} 24... Nb6 {[%clk 0:01:42.7]} 25. Qa3 {[%clk 0:01:30.4]} 25...
Nc7 {[%clk 0:01:30]} 26. Ne1 {[%clk 0:01:20.3]} 26... Qc8 {[%clk 0:01:15.3]} 27.
Nc2 {[%clk 0:01:19.8]} 27... Bf6 {[%clk 0:01:03.7]} 28. Qa5 {[%clk 0:01:08]}
28... Bd8 {[%clk 0:00:52.1]} 29. Na3 {[%clk 0:01:07.6]} 29... Nd7 {[%clk
0:00:29.6]} 30. Nb5 {[%clk 0:01:06.2]} 30... Nxb5 {[%clk 0:00:23.5]} 31. Qxb5
{[%clk 0:01:05.7]} 31... Bb6 {[%clk 0:00:23.7]} 32. Qxd7 {[%clk 0:01:04.4]} 1-0

[Event "*** SCC Grand Prix: Titled Tuesday Blitz"]
[Site "Chess.com"]
[Date "2020.07.21"]
[Round "6"]
[White "Micki-taryan"]
[Black "Jumbo"]
[Result "1-0"]
[WhiteElo "3045"]
[BlackElo "2862"]
[TimeControl "180+1"]
[EndTime "11:05:42 PDT"]
[Termination "Micki-taryan won by resignation"]

1. Nf3 {[%clk 0:03:00.9]} 1... Nf6 {[%clk 0:02:59.9]} 2. e3 {[%clk 0:03:01.8]}
2... g6 {[%clk 0:02:57.5]} 3. b3 {[%clk 0:03:02]} 3... Bg7 {[%clk 0:02:57.6]} 4.
Bb2 {[%clk 0:03:02.9]} 4... b6 {[%clk 0:02:57.4]} 5. c4 {[%clk 0:03:02.1]} 5...
Bb7 {[%clk 0:02:57.6]} 6. Nc3 {[%clk 0:03:03]} 6... O-O {[%clk 0:02:53.9]} 7.
Be2 {[%clk 0:03:03.3]} 7... e6 {[%clk 0:02:53.4]} 8. O-O {[%clk 0:03:02.5]} 8...
c5 {[%clk 0:02:53.2]} 9. d4 {[%clk 0:03:01]} 9... Qe7 {[%clk 0:02:39.1]} 10. Rc1
{[%clk 0:02:59.2]} 10... Rd8 {[%clk 0:02:25.6]} 11. Ba3 {[%clk 0:02:54.2]} 11...
d6 {[%clk 0:02:13.3]} 12. Qd2 {[%clk 0:02:52]} 12... Ne4 {[%clk 0:01:59.9]} 13.
Nxe4 {[%clk 0:02:51.4]} 13... Bxe4 {[%clk 0:02:00.8]} 14. Rfd1 {[%clk 0:02:52]}
14... Na6 {[%clk 0:01:55.9]} 15. Bb2 {[%clk 0:02:42]} 15... d5 {[%clk
0:01:52.8]} 16. cxd5 {[%clk 0:02:35.9]} 16... Nb4 {[%clk 0:01:45.9]} 17. dxc5
{[%clk 0:02:23.5]} 17... Bxb2 {[%clk 0:01:10.1]} 18. Qxb2 {[%clk 0:02:15.7]}
18... Nxd5 {[%clk 0:01:08.1]} 19. c6 {[%clk 0:02:11.1]} 19... Rac8 {[%clk
0:01:07]} 20. Ne5 {[%clk 0:01:58.9]} 20... f6 {[%clk 0:00:55.3]} 21. Nd7 {[%clk
0:01:52.4]} 21... e5 {[%clk 0:00:41.8]} 22. f3 {[%clk 0:01:43.8]} 22... Nxe3
{[%clk 0:00:41]} 23. Nxf6+ {[%clk 0:01:27.1]} 23... Qxf6 {[%clk 0:00:39.9]} 24.
Rxd8+ {[%clk 0:01:26.9]} 24... Qxd8 {[%clk 0:00:38.3]} 25. fxe4 {[%clk
0:01:24.8]} 25... Qg5 {[%clk 0:00:07.9]} 26. Bf3 {[%clk 0:01:16.5]} 26... Rc7
{[%clk 0:00:03.3]} 27. Qd2 {[%clk 0:01:14]} 27... Qf4 {[%clk 0:00:03.1]} 28.
Qd8+ {[%clk 0:01:11]} 1-0

[Event "*** SCC Grand Prix: Titled Tuesday Blitz"]
[Site "Chess.com"]
[Date "2020.07.21"]
[Round "6"]
[White "Evachess2006"]
[Black "TioCridineno"]
[Result "0-1"]
[WhiteElo "1605"]
[BlackElo "2174"]
[TimeControl "180+1"]
[EndTime "11:05:45 PDT"]
[Termination "TioCridineno won on time"]

1. e4 {[%clk 0:01:58.9]} 1... c5 {[%clk 0:02:57.7]} 2. c3 {[%clk 0:01:55.7]}
2... g6 {[%clk 0:02:52.4]} 3. d4 {[%clk 0:01:55.6]} 3... cxd4 {[%clk 0:02:52.2]}
4. cxd4 {[%clk 0:01:56.5]} 4... d5 {[%clk 0:02:52]} 5. e5 {[%clk 0:01:52.5]}
5... Bg7 {[%clk 0:02:51.5]} 6. Nc3 {[%clk 0:01:52.8]} 6... Nc6 {[%clk
0:02:50.6]} 7. Bb5 {[%clk 0:01:51.3]} 7... e6 {[%clk 0:02:39.9]} 8. Nf3 {[%clk
0:01:45]} 8... Bd7 {[%clk 0:02:39.8]} 9. O-O {[%clk 0:01:43.9]} 9... Nce7 {[%clk
0:02:35.5]} 10. Qa4 {[%clk 0:01:39.5]} 10... h6 {[%clk 0:02:27.9]} 11. Bxd7+
{[%clk 0:01:19.6]} 11... Qxd7 {[%clk 0:02:27.7]} 12. Nb5 {[%clk 0:01:05.2]}
12... Kf8 {[%clk 0:02:24.6]} 13. Bd2 {[%clk 0:00:33.3]} 13... Nc6 {[%clk
0:02:23.5]} 14. Qa3+ {[%clk 0:00:22.1]} 14... Nge7 {[%clk 0:02:22.8]} 15. Bb4
{[%clk 0:00:16.8]} 15... Nxb4 {[%clk 0:02:19.2]} 16. Qxb4 {[%clk 0:00:17.7]}
16... Kg8 {[%clk 0:02:15.2]} 17. Qd6 {[%clk 0:00:07.5]} 17... Rd8 {[%clk
0:02:11.4]} 18. Qxd7 {[%clk 0:00:06.9]} 18... Rxd7 {[%clk 0:02:10.4]} 19. Rac1
{[%clk 0:00:07.8]} 19... Nc6 {[%clk 0:02:09.8]} 20. Nc3 {[%clk 0:00:03.9]} 20...
Kh7 {[%clk 0:02:08]} 21. Ne2 {[%clk 0:00:04.8]} 21... Rc8 {[%clk 0:02:06.6]} 22.
a3 {[%clk 0:00:05.7]} 22... Rdc7 {[%clk 0:02:06.9]} 23. Rc3 {[%clk 0:00:06.6]}
23... Na5 {[%clk 0:02:03.9]} 24. Rfc1 {[%clk 0:00:07.5]} 24... Rxc3 {[%clk
0:02:02.5]} 25. Rxc3 {[%clk 0:00:08.4]} 25... Rxc3 {[%clk 0:02:02.5]} 26. Nxc3
{[%clk 0:00:08.9]} 26... Nc4 {[%clk 0:02:02.7]} 27. Nd1 {[%clk 0:00:05.2]} 27...
g5 {[%clk 0:02:01.1]} 28. a4 {[%clk 0:00:05.1]} 28... Bf8 {[%clk 0:02:00.1]} 29.
b3 {[%clk 0:00:03.6]} 29... Na5 {[%clk 0:01:57.3]} 30. Nc3 {[%clk 0:00:04.2]}
30... Nxb3 {[%clk 0:01:56.9]} 31. Nb5 {[%clk 0:00:04.2]} 31... a6 {[%clk
0:01:56.4]} 32. Nc7 {[%clk 0:00:05.1]} 32... Kg6 {[%clk 0:01:49.7]} 33. Kf1
{[%clk 0:00:04.7]} 33... Be7 {[%clk 0:01:47.8]} 34. Ke2 {[%clk 0:00:05]} 34...
Bd8 {[%clk 0:01:47.9]} 35. Ne8 {[%clk 0:00:02.1]} 35... Na5 {[%clk 0:01:44.2]}
36. Nd6 {[%clk 0:00:03]} 36... b6 {[%clk 0:01:41.4]} 37. h3 {[%clk 0:00:03.1]}
37... Nc4 {[%clk 0:01:41.3]} 0-1

[Event "*** SCC Grand Prix: Titled Tuesday Blitz"]
[Site "Chess.com"]
[Date "2020.07.21"]
[Round "6"]
[White "arminmusovic"]
[Black "talaicito"]
[Result "1-0"]
[WhiteElo "2523"]
[BlackElo "2076"]
[TimeControl "180+1"]
[EndTime "11:05:46 PDT"]
[Termination "arminmusovic won on time"]

1. a3 {[%clk 0:03:00.9]} 1... e5 {[%clk 0:02:58.9]} 2. Nc3 {[%clk 0:03:01.8]}
2... d5 {[%clk 0:02:54.7]} 3. d4 {[%clk 0:03:02.1]} 3... e4 {[%clk 0:02:53.9]}
4. Bf4 {[%clk 0:03:01.9]} 4... c6 {[%clk 0:02:53.5]} 5. f3 {[%clk 0:03:01.7]}
5... Nf6 {[%clk 0:02:51.7]} 6. Qd2 {[%clk 0:03:00.2]} 6... Be7 {[%clk
0:02:44.8]} 7. e3 {[%clk 0:02:56]} 7... O-O {[%clk 0:02:43.8]} 8. Nge2 {[%clk
0:02:53.8]} 8... b5 {[%clk 0:02:36.4]} 9. fxe4 {[%clk 0:02:43.1]} 9... dxe4
{[%clk 0:02:35.8]} 10. Ng3 {[%clk 0:02:39]} 10... Re8 {[%clk 0:02:12.7]} 11. Be2
{[%clk 0:02:26.9]} 11... Bd6 {[%clk 0:02:00.8]} 12. O-O {[%clk 0:02:23.4]} 12...
Nd5 {[%clk 0:01:38.3]} 13. Nxd5 {[%clk 0:02:21]} 13... cxd5 {[%clk 0:01:37.3]}
14. Bxb5 {[%clk 0:02:21.2]} 14... Bd7 {[%clk 0:01:30.9]} 15. Bxd7 {[%clk
0:02:14.8]} 15... Qxd7 {[%clk 0:01:31]} 16. Bxd6 {[%clk 0:02:15.2]} 16... Qxd6
{[%clk 0:01:31.3]} 17. Nf5 {[%clk 0:02:15.8]} 17... Qg6 {[%clk 0:01:22.7]} 18.
Rf4 {[%clk 0:01:59.1]} 18... Nd7 {[%clk 0:01:19.3]} 19. Raf1 {[%clk 0:01:59.2]}
19... Nf6 {[%clk 0:01:17.6]} 20. Qa5 {[%clk 0:01:48.2]} 20... h5 {[%clk
0:00:51.5]} 21. h3 {[%clk 0:01:30.8]} 21... Re6 {[%clk 0:00:42.4]} 22. Qc7
{[%clk 0:01:23.2]} 22... Kh7 {[%clk 0:00:37.7]} 23. Nh4 {[%clk 0:01:15.1]} 23...
Qg3 {[%clk 0:00:34.1]} 24. Qxf7 {[%clk 0:01:06.8]} 24... Qxe3+ {[%clk
0:00:33.2]} 25. Kh1 {[%clk 0:01:07.3]} 25... Rb6 {[%clk 0:00:09.1]} 26. Nf5
{[%clk 0:00:57]} 1-0

[Event "*** SCC Grand Prix: Titled Tuesday Blitz"]
[Site "Chess.com"]
[Date "2020.07.21"]
[Round "6"]
[White "MestreSoares"]
[Black "PawnEatingZombie"]
[Result "1-0"]
[WhiteElo "2086"]
[BlackElo "2228"]
[TimeControl "180+1"]
[EndTime "11:05:48 PDT"]
[Termination "MestreSoares won by resignation"]

1. Nf3 {[%clk 0:03:00.9]} 1... d5 {[%clk 0:02:59.5]} 2. b3 {[%clk 0:03:00.9]}
2... Bg4 {[%clk 0:02:56.3]} 3. Bb2 {[%clk 0:03:00.7]} 3... e6 {[%clk 0:02:56.5]}
4. e3 {[%clk 0:03:00.1]} 4... Nf6 {[%clk 0:02:56.4]} 5. Be2 {[%clk 0:03:00.5]}
5... Nbd7 {[%clk 0:02:55.6]} 6. O-O {[%clk 0:03:00.8]} 6... Bd6 {[%clk
0:02:52.1]} 7. d4 {[%clk 0:03:00.2]} 7... O-O {[%clk 0:02:48.8]} 8. h3 {[%clk
0:02:59.8]} 8... Bh5 {[%clk 0:02:48.4]} 9. c4 {[%clk 0:02:58.9]} 9... c6 {[%clk
0:02:48.1]} 10. Nc3 {[%clk 0:02:58.4]} 10... Re8 {[%clk 0:02:40.9]} 11. Rc1
{[%clk 0:02:56.4]} 11... Qe7 {[%clk 0:02:25.7]} 12. Qc2 {[%clk 0:02:50.6]} 12...
Bg6 {[%clk 0:02:21.7]} 13. Bd3 {[%clk 0:02:49.6]} 13... Bxd3 {[%clk 0:02:21.4]}
14. Qxd3 {[%clk 0:02:49.9]} 14... Rad8 {[%clk 0:02:14.9]} 15. Rfd1 {[%clk
0:02:48.5]} 15... Ba3 {[%clk 0:01:57.4]} 16. cxd5 {[%clk 0:02:29.8]} 16... Bxb2
{[%clk 0:01:48.3]} 17. dxc6 {[%clk 0:02:28.3]} 17... bxc6 {[%clk 0:01:40.4]} 18.
Rc2 {[%clk 0:02:28.1]} 18... Bxc3 {[%clk 0:01:39.7]} 19. Qxc3 {[%clk 0:02:27.8]}
19... Rc8 {[%clk 0:01:35.6]} 20. Qa5 {[%clk 0:02:25.1]} 20... c5 {[%clk
0:01:23.3]} 21. Qxa7 {[%clk 0:02:20.4]} 21... cxd4 {[%clk 0:01:21]} 22. Rxc8
{[%clk 0:02:18.9]} 22... Rxc8 {[%clk 0:01:20.7]} 23. Nxd4 {[%clk 0:02:17.9]}
23... Qc5 {[%clk 0:01:15.9]} 24. Qa4 {[%clk 0:02:08.1]} 24... h6 {[%clk
0:01:04.9]} 25. Nf3 {[%clk 0:02:00]} 25... Ne5 {[%clk 0:00:56.2]} 26. Nxe5
{[%clk 0:01:56.7]} 26... Qxe5 {[%clk 0:00:56.1]} 27. b4 {[%clk 0:01:47.3]} 27...
Ne4 {[%clk 0:00:45.6]} 28. Qa6 {[%clk 0:01:36.6]} 28... Rc2 {[%clk 0:00:41.4]}
29. Rf1 {[%clk 0:01:34.7]} 29... Qf5 {[%clk 0:00:36.6]} 30. f3 {[%clk
0:01:03.1]} 30... Qg5 {[%clk 0:00:36.2]} 31. Qa8+ {[%clk 0:00:54.4]} 1-0

[Event "*** SCC Grand Prix: Titled Tuesday Blitz"]
[Site "Chess.com"]
[Date "2020.07.21"]
[Round "6"]
[White "SiddharthGMJagadeesh"]
[Black "vitnik2020"]
[Result "1-0"]
[WhiteElo "2566"]
[BlackElo "2330"]
[TimeControl "180+1"]
[EndTime "11:05:53 PDT"]
[Termination "SiddharthGMJagadeesh won by resignation"]

1. d4 {[%clk 0:03:00.9]} 1... d5 {[%clk 0:02:59.3]} 2. c4 {[%clk 0:03:00.9]}
2... e6 {[%clk 0:02:58.4]} 3. Nf3 {[%clk 0:03:00.4]} 3... Nf6 {[%clk 0:02:57.6]}
4. Bf4 {[%clk 0:03:00.4]} 4... Be7 {[%clk 0:02:56.1]} 5. e3 {[%clk 0:03:00.4]}
5... O-O {[%clk 0:02:55.6]} 6. Nbd2 {[%clk 0:03:00.6]} 6... b6 {[%clk
0:02:50.4]} 7. Bd3 {[%clk 0:02:59.8]} 7... Bb7 {[%clk 0:02:47.9]} 8. O-O {[%clk
0:02:59.8]} 8... c5 {[%clk 0:02:41.3]} 9. cxd5 {[%clk 0:02:47.3]} 9... Nxd5
{[%clk 0:02:24]} 10. Bg3 {[%clk 0:02:47]} 10... Nc6 {[%clk 0:02:22.4]} 11. a3
{[%clk 0:02:39.6]} 11... cxd4 {[%clk 0:02:21]} 12. exd4 {[%clk 0:02:40.5]} 12...
Bf6 {[%clk 0:02:16.5]} 13. Ne4 {[%clk 0:02:40.3]} 13... Bxd4 {[%clk 0:02:09.1]}
14. Nd6 {[%clk 0:02:29.8]} 14... Qe7 {[%clk 0:01:34.6]} 15. Nxb7 {[%clk
0:02:17.9]} 15... Qxb7 {[%clk 0:01:33.4]} 16. Nxd4 {[%clk 0:02:18.8]} 16... Nxd4
{[%clk 0:01:32.9]} 17. Bxh7+ {[%clk 0:02:19.7]} 17... Kxh7 {[%clk 0:01:32.6]}
18. Qxd4 {[%clk 0:02:20.6]} 18... Rfd8 {[%clk 0:01:16.8]} 19. Rad1 {[%clk
0:02:18.6]} 19... Nf6 {[%clk 0:01:11.8]} 20. Qh4+ {[%clk 0:02:17.6]} 20... Kg8
{[%clk 0:01:10.6]} 21. Be5 {[%clk 0:02:15.2]} 21... Qe7 {[%clk 0:01:04.5]} 22.
Rc1 {[%clk 0:02:04.7]} 22... Rd7 {[%clk 0:01:00.6]} 23. Rc3 {[%clk 0:01:58.5]}
23... Nd5 {[%clk 0:00:57.1]} 24. Qxe7 {[%clk 0:01:45.5]} 24... Nxe7 {[%clk
0:00:55]} 25. Rc2 {[%clk 0:01:41.1]} 25... Rad8 {[%clk 0:00:53.8]} 26. g3 {[%clk
0:01:41.1]} 26... Rd2 {[%clk 0:00:51.9]} 27. Rfc1 {[%clk 0:01:39.9]} 27... Nf5
{[%clk 0:00:45.6]} 28. Rxd2 {[%clk 0:01:33.6]} 28... Rxd2 {[%clk 0:00:44.1]} 29.
Rc8+ {[%clk 0:01:34.5]} 29... Kh7 {[%clk 0:00:43.3]} 30. Rc7 {[%clk 0:01:35.4]}
30... Nd4 {[%clk 0:00:23.6]} 31. Bxd4 {[%clk 0:01:28.7]} 31... Rxd4 {[%clk
0:00:23]} 32. Rxf7 {[%clk 0:01:18.8]} 32... Rd2 {[%clk 0:00:21.9]} 33. b4 {[%clk
0:01:15.5]} 33... a5 {[%clk 0:00:20.4]} 34. Rb7 {[%clk 0:01:05.7]} 34... Ra2
{[%clk 0:00:16]} 35. Rxb6 {[%clk 0:01:03.9]} 35... Rxa3 {[%clk 0:00:15.7]} 36.
bxa5 {[%clk 0:01:04.3]} 1-0

[Event "*** SCC Grand Prix: Titled Tuesday Blitz"]
[Site "Chess.com"]
[Date "2020.07.21"]
[Round "6"]
[White "GelmanAlexander"]
[Black "kasparicy"]
[Result "1-0"]
[WhiteElo "2574"]
[BlackElo "2345"]
[TimeControl "180+1"]
[EndTime "11:05:54 PDT"]
[Termination "GelmanAlexander won by resignation"]

1. c4 {[%clk 0:03:00.9]} 1... f5 {[%clk 0:02:55.8]} 2. Nf3 {[%clk 0:03:00.5]}
2... Nc6 {[%clk 0:02:55.9]} 3. d4 {[%clk 0:02:59.8]} 3... e6 {[%clk 0:02:56]} 4.
d5 {[%clk 0:02:58]} 4... exd5 {[%clk 0:02:55.4]} 5. cxd5 {[%clk 0:02:58]} 5...
Nce7 {[%clk 0:02:51.6]} 6. d6 {[%clk 0:02:52.9]} 6... cxd6 {[%clk 0:02:51]} 7.
Nc3 {[%clk 0:02:52.6]} 7... Nf6 {[%clk 0:02:50.2]} 8. Bg5 {[%clk 0:02:27.5]}
8... Nc6 {[%clk 0:02:44.1]} 9. e4 {[%clk 0:02:02.5]} 9... fxe4 {[%clk
0:02:36.8]} 10. Nxe4 {[%clk 0:02:02.1]} 10... Qa5+ {[%clk 0:02:20.3]} 11. Bd2
{[%clk 0:01:52.2]} 11... Qf5 {[%clk 0:02:17.3]} 12. Nxf6+ {[%clk 0:01:18.3]}
12... Qxf6 {[%clk 0:02:18.2]} 13. Bc4 {[%clk 0:01:18.4]} 13... Ne5 {[%clk
0:02:13.5]} 14. Qe2 {[%clk 0:00:47.8]} 14... Be7 {[%clk 0:02:05.2]} 15. Bc3
{[%clk 0:00:39.5]} 15... b5 {[%clk 0:01:17.5]} 16. Nxe5 {[%clk 0:00:38.4]} 16...
dxe5 {[%clk 0:01:15.8]} 17. Bxe5 {[%clk 0:00:38.3]} 17... Qg5 {[%clk 0:00:54.7]}
18. f4 {[%clk 0:00:31.6]} 18... Qg6 {[%clk 0:00:30.3]} 19. Bd5 {[%clk
0:00:31.5]} 19... Rb8 {[%clk 0:00:28.7]} 20. Bxb8 {[%clk 0:00:30.8]} 20... Kd8
{[%clk 0:00:26]} 21. O-O {[%clk 0:00:28.7]} 21... Re8 {[%clk 0:00:24.8]} 22.
Qxb5 {[%clk 0:00:26.8]} 1-0